Cogmind - Beta 17 @@@ ROGUE MODE // 2026.07.27 @ 16:16:12 Player: Akl Result: Destroyed by QM-05H(R) with Subdweller Laser Performance ------------- Evolutions (0) 0 Regions Visited (2) 400 Robots Destroyed (7) 35 Value Destroyed (179) 179 Prototype IDs (0) 0 Alien Tech Used (0) 0 Bonus (0) 0 TOTAL SCORE: 614 Bonus ------- None Cogmind --------- Core Integrity 0/250 Matter 239/300 Energy 104/125 System Corruption 0% Temperature Cool (6) Movement Flying (117) Ox1 Location -10/Subcaves Parts ------- > --- POWER (1) -------- Light Ion Engine > --- PROPULSION (2) --- Flight Unit Flight Unit > --- UTILITY (2) ------ Signal Interpreter Makeshift Thermal Plating > --- WEAPON (2) ------- Barrage Gun > --- INVENTORY (5) ---- Flight Unit Signal Interpreter Mining Laser Peak State ------------ > --- POWER ------------ Light Ion Engine > --- PROPULSION ------- Flight Unit Flight Unit > --- UTILITY ---------- Signal Interpreter Makeshift Thermal Plating > --- WEAPON ----------- Barrage Gun > --- INVENTORY -------- Flight Unit Signal Interpreter Mining Laser [Rating: 11] Favorites ----------- Power Light Ion Engine Engine Light Ion Engine Propulsion Flight Unit Leg Aluminum Leg Wheel Wheel Flight Unit Flight Unit Utility Signal Interpreter Device Sensor Array Processor Signal Interpreter Protection Makeshift Thermal Plating Weapon Light Assault Rifle Ballistic Gun Light Assault Rifle Special Weapon Mining Laser Build | -11 -10 -10 ------- Run | Yrd Mat Sub Slots Evolved . | . . . Power . | . . . Propulsion . | . . . Utility . | . . . Weapon . | . . . Parts Attached 15 | 4 6 5 Power 1 | . . 1 Engine 1 | . . 1 Core . | . . . Reactor . | . . . Propulsion 6 | 2 3 1 Treads . | . . . Leg 1 | 1 . . Wheel 1 | 1 . . Hover . | . . . Flight 4 | . 3 1 Utility 3 | . 2 1 Device 1 | . 1 . Storage . | . . . Processor 1 | . 1 . Hackware . | . . . Protection 1 | . . 1 Artifact . | . . . Weapon 5 | 2 1 2 Energy Gun . | . . . Energy Cannon . | . . . Ballistic Gun 4 | 2 1 1 Ballistic Cannon . | . . . Launcher . | . . . Special Weapon 1 | . . 1 Impact Weapon . | . . . Slashing Weapon . | . . . Piercing Weapon . | . . . Special Melee Weapon . | . . . Unidentified Prototypes . | . . . Parts Lost 7 | . 4 3 Power . | . . . Propulsion 3 | . 2 1 Utility 1 | . 1 . Weapon 3 | . 1 2 Highest Loss Streak 4 | . 4 3 To Critical Strikes . | . . . Average Backups 4 | 1 3 4 Power . | . 1 . Propulsion 1 | . 1 2 Utility . | . . 1 Weapon . | . . 1 Tool/Special . | . . . Unused Backups 2 | . . 2 Power . | . . . Propulsion 1 | . . 1 Utility 1 | . . 1 Weapon . | . . . Tool/Special . | . . . Average Slot Usage (%) 74 | . 73 76 Engine 1 | . . 2 Leg 4 | . 9 . Wheel 4 | . 10 . Flight 16 | . 4 26 Device 3 | . 7 . Processor 13 | . 13 14 Protection 2 | . . 5 Ballistic Gun 23 | . 28 20 Special Weapon 3 | . . 6 Peak Build Rating 11 | 4 6 11 Average Rating 5 | 2 5 6 On Entrance 3 | . 4 5 Avg Prop Armor Cover (%) 18 | 19 18 . Naked Turns . | . . . Heaviest Build 9 | 3 4 9 Greatest Support 10 | 10 8 8 Greatest Overweight (x) 1 | . 1 1 Average Overweight (x) . | . . . Largest Inventory Capacity 5 | 5 5 5 Average Capacity 5 | 5 5 5 Most Carried 5 | 3 5 5 Average Carried 4 | . 3 4 Final Capacity 5 | 5 5 5 Final Carried 5 | 1 5 3 Class Distribution -------------------- 100% | Mutant Dominant Class ---------------- Mutant | -10/Materials Mutant | -10/Subcaves Resources | -11 -10 -10 ----------- Run | Yrd Mat Sub Matter Collected 383 | 240 143 . Remotely . | . . . Salvage Created 218 | . 218 . Parts 13 | . 13 . Haulers Intercepted . | . . . Recyclers Shooed . | . . . Parts Field Recycled . | . . . Retrieved Matter . | . . . Parts Self-Destructed . | . . . Prevented . | . . . Parts Restored . | . . . Kills | -11 -10 -10 ------- Run | Yrd Mat Sub Combat Hostiles Destroyed 7 | . 7 . Guns 7 | . 7 . Classes Destroyed 2 | . 2 . Swarmer 3 | . 3 . Grunt 4 | . 4 . Best Kill Streak 5 | . 5 . Combat Bots Only 5 | . 5 . Max Kills in Single Turn 1 | . 1 . Gunslinging . | . . . Exploded . | . . . Melee . | . . . Uniques/NPCs Destroyed . | . . . Combat | -11 -10 -10 -------- Run | Yrd Mat Sub Hostile Shots Fired 88 | . 65 23 Missed 30 | . 20 10 Hits 58 | . 45 13 Projectile 58 | . 45 13 Critical Strikes 1 | . 1 . Damage Taken 793 | . 494 299 Core 250 | . 139 111 Absorbed by Shields . | . . . Ignored by Resistances 26 | . . 26 Core Remaining (%) 100 | 100 . . Volleys Fired 51 | . 30 21 Largest 2 | . 2 2 Hottest 100 | . 40 100 Shots Fired 84 | . 59 25 Gun 75 | . 59 16 Cannon . | . . . Launcher . | . . . Special 9 | . . 9 Kinetic 75 | . 59 16 Thermal 9 | . . 9 Explosive . | . . . Electromagnetic . | . . . Robot Hit Streak 15 | . 15 7 Robot Miss Streak 3 | . 3 1 Penetration Max . | . . . Secondary Targets 1 | . 1 . Max Gunslinging Chain 1 | . 1 . Shots Hit Robots 56 | . 44 12 Core Hits 19 | . 15 4 Critical Kills . | . . . Critical Parts Destroyed . | . . . Critical Strikes . | . . . Melee Attacks . | . . . Impact . | . . . Slashing . | . . . Piercing . | . . . Sneak Attacks . | . . . Combat Hostiles . | . . . Follow-up Attacks . | . . . Damage Inflicted 446 | . 377 69 Guns 446 | . 377 69 Cannons . | . . . Explosions . | . . . Melee . | . . . Ramming . | . . . Kinetic 446 | . 377 69 Thermal . | . . . Explosive . | . . . Electromagnetic . | . . . Impact . | . . . Slashing . | . . . Piercing . | . . . Highest Corruption . | . . . Average Corruption . | . . . Corruption Purged . | . . . Corruption Blocked . | . . . Overload Shots . | . . . Overflow Damage . | . . . Projectiles . | . . . Explosions . | . . . Melee . | . . . Knockbacks . | . . . Impact . | . . . Kinetic . | . . . Secondary . | . . . Self-Inflicted Damage . | . . . Shots . | . . . Rammed . | . . . Targets Rammed . | . . . Kicked . | . . . Crushed . | . . . Highest Temperature 22 | . 22 . Average Temperature 5 | . 5 . Received Heat Transfer 330 | . 225 105 Siege Activations . | . . . Martial Activations . | . . . Shielding Activations . | . . . Robots Disrupted . | . . . Combat Hostiles . | . . . Robots Corrupted . | . . . Combat Hostiles . | . . . Parts Fried . | . . . Impact Corruptions . | . . . Robots Melted . | . . . Combat Hostiles . | . . . Parts Melted . | . . . Heat Transferred . | . . . Parts Sabotaged . | . . . Parts Stolen . | . . . Parts Stripped . | . . . Power Chain Reactions . | . . . Alert | -11 -10 -10 ------- Run | Yrd Mat Sub Maximum Alert Level . | . . . Low Security (%) 100 | 100 100 . Level 1 . | . . . Level 2 . | . . . Level 3 . | . . . Level 4 . | . . . Level 5 . | . . . High Security . | . . . Max Security . | . . . Peak Influence 120 | . 120 . Initial . | . . . Average 45 | . 52 . Influence Increases 200 | . 200 . Destroy 0b10 Robot/C 140 | . 140 . Destroy Leader 30 | . 30 . Lose Combat Pursuer 30 | . 30 . Influence Decreases 200 | . 90 110 Entered New Map 54 | . . 54 Time Decay 106 | . 50 56 Lost Part 40 | . 40 . Squads Dispatched 1 | . 1 . Investigation . | . . . Extermination . | . . . Reinforcement 1 | . 1 . Assault . | . . . Garrison . | . . . Intercept . | . . . Searches Triggered . | . . . Construction Impeded . | . . . Haulers Reinforced . | . . . Active Scanning Responses . | . . . Cargo Convoy Interrupts . | . . . Stealth | -11 -10 -10 --------- Run | Yrd Mat Sub Distress Signals 3 | . 3 . Communications Jammed . | . . . Distress Signals . | . . . Times Spotted 17 | . 11 6 Peak Tracking Total 9 | . 9 3 Tactical Retreats 3 | . 1 2 Traps | -11 -10 -10 ------- Run | Yrd Mat Sub Traps Triggered . | . . . Indirectly . | . . . Trap Hack Attempts . | . . . Triggered . | . . . Disarmed . | . . . Reprogrammed . | . . . Reused . | . . . Traps Extracted . | . . . Installed . | . . . Triggered . | . . . Machines | -11 -10 -10 ---------- Run | Yrd Mat Sub Machines Disabled . | . . . Max in Single Turn . | . . . Machines Repaired . | . . . Machines Dismantled . | . . . Machines Sabotaged . | . . . Overloaded Fab Kills . | . . . Hacking | -11 -10 -10 --------- Run | Yrd Mat Sub Machines Accessed . | . . . Terminals . | . . . Fabricators . | . . . Repair Stations . | . . . Recycling Units . | . . . Scanalyzers . | . . . Garrison Access . | . . . Total Hacks . | . . . Successful . | . . . Failed . | . . . Catastrophic . | . . . Database Lockouts . | . . . Manual . | . . . Terminals . | . . . Fabricators . | . . . Repair Stations . | . . . Recycling Units . | . . . Scanalyzers . | . . . Garrison Access . | . . . Terminal Hacks . | . . . Fabricator Hacks . | . . . Repair Station Hacks . | . . . Recycling Unit Hacks . | . . . Scanalyzer . | . . . Garrison Access Hacks . | . . . Unauthorized Hacks . | . . . Terminals . | . . . Fabricators . | . . . Repair Stations . | . . . Recycling Units . | . . . Scanalyzers . | . . . Garrison Access . | . . . Data Cores Recovered . | . . . Used . | . . . Hacking Detections . | . . . Full Trace Events . | . . . Feedback Events . | . . . Feedback Blocked . | . . . Robot Schematics Acquired . | . . . Robots Built . | . . . Authchips . | . . . Time . | . . . Total Robot Build Rating . | . . . Part Schematics Acquired . | . . . Parts Built . | . . . Authchips . | . . . Time . | . . . Total Part Build Rating . | . . . Part Studies Acquired . | . . . Parts Repaired . | . . . Time . | . . . Parts Recycled . | . . . Recycled Matter . | . . . Retrieved Matter . | . . . Retrieved Components . | . . . Parts Scanalyzed . | . . . Part Schematics Acquired . | . . . Parts Damaged . | . . . Bothacking | -11 -10 -10 ------------ Run | Yrd Mat Sub Used RIF Installer . | . . . Robots Hacked . | . . . Non-combat . | . . . Combat . | . . . Robot Hacks Applied . | . . . Relay Couplers Released . | . . . Fabnet Peak Effective % . | . . . Robots Rewired . | . . . Allies Hacked . | . . . Hacks Repelled . | . . . Allies | -11 -10 -10 -------- Run | Yrd Mat Sub Total Allies . | . . . Largest Group . | . . . Highest-Rated Group . | . . . Highest-Rated Ally . | . . . Total Orders . | . . . Ally Attacks . | . . . Total Damage . | . . . Kills . | . . . Allies Corrupted . | . . . Allies Melted . | . . . Intel | -11 -10 -10 ------- Run | Yrd Mat Sub Active Infowar (turns) 104 | . 104 . Sensors 104 | . 104 . Robot Analysis Total . | . . . Derelict Logs Recovered 3 | . . 3 Drone Launches . | . . . Drone Recoveries . | . . . Exploration | -11 -10 -10 ------------- Run | Yrd Mat Sub Turns Passed 460 | 30 192 238 Spaces Moved 424 | 41 112 271 Core 115 | 40 75 . Treads . | . . . Legs . | . . . Wheels 1 | 1 . . Hover . | . . . Flight 308 | . 37 271 Fastest Speed 37 | 50 37 37 Average Speed 45 | 50 56 39 Slowest Speed 120 | 80 100 120 Overloaded Moves . | . . . Propulsion Burnouts . | . . . Robots Hopped 1 | . 1 . Potential Cave-ins . | . . . Cave-ins Triggered . | . . . Exploration Rate (%) 17 | 3 24 26 Regions Visited 2 Branch Regions 1 Pre-discovered Areas . | . . . Known Exits Taken 1 | . 1 . Unknown Exits Taken 1 | 1 . . Scrap Searched . | . . . Spaces Dug . | . . . Terrain Destroyed . | . . . Melee . | . . . Projectile . | . . . AOE . | . . . Terrain Rammed . | . . . Walls Destroyed . | . . . Machines Disabled . | . . . Actions | -11 -10 -10 --------- Run | Yrd Mat Sub Total 595 | 49 186 360 Wait 95 | . 34 61 Move 420 | 40 109 271 Hop 1 | . 1 . Pick Up 11 | 5 5 1 Fast Attach 5 | . 4 1 Attach 8 | 4 1 3 Detach . | . . . Swap 3 | . 1 2 Drop 1 | . 1 . Fire 51 | . 30 21 Melee . | . . . Ram . | . . . Kick . | . . . Crush . | . . . Escape Stasis . | . . . Rewire . | . . . Trap . | . . . Miscellaneous . | . . . Route ------- -11/Scrapyard -10/Materials -10/Subcaves History --------- Turn | Location | Event 2 | -11/Scrapyard | Met Revision 17 8 | -11/Scrapyard | Discovered new exit (range 15) 31 | -11/Scrapyard | Entered Materials 192 | -10/Materials | Core integrity fell below 50% 220 | -10/Materials | Lost 4 parts (2n1u1w) 220 | -10/Materials | Discovered new exit (range 6) 222 | -10/Materials | Identified exit to Subcaves 223 | -10/Materials | Entered Subcaves 224 | -10/Subcaves | Approached by a straggling Scientist 237 | -10/Subcaves | Learned Materials trap positions 261 | -10/Subcaves | Disturbed a concealed Subdweller 337 | -10/Subcaves | Build established: Mutant 348 | -10/Subcaves | Learned Materials emergency access door positions 375 | -10/Subcaves | Shifting Twisted Machinery released Mak. Thermal Plating 423 | -10/Subcaves | Learned 4 Materials zone layouts 425 | -10/Subcaves | Shifting Twisted Machinery released Barrage Gun 427 | -10/Subcaves | A swath of the cavern ceiling suddenly collapsed 458 | -10/Subcaves | Core integrity fell below 20% 461 | -10/Subcaves | Destroyed by QM-05H(R) with Subdweller Laser Last Messages --------------- back to the UFD." 00237_ Acquired derelict log, extracted data. Data stored: Materials trap records. 00261_ 03-T9C(R) angrily emerges from the Twisted Machinery. 00348_ Acquired derelict log, extracted data. Data stored: Materials emergency access points. Mak. Thermal Plating falls loose from the Twisted Machinery. 00375_ Acquired Mak. Thermal Plating. 00423_ Acquired derelict log, extracted data. Data stored: Materials zone layouts (x4). Barrage Gun falls loose from the Twisted Machinery. A swath of the cavern ceiling suddenly collapses. 00431_ Acquired Barrage Gun. 00444_ Lgt. Assault Rifle destroyed. 00446_ Flight Unit destroyed. 00459_ Lgt. Assault Rifle destroyed. Map ----- +----------------------------------------------------+ | ?????????????????????????????????????????????????? | | ?????????????????????????????????????????????????? | | ?????????????????????????????????????????????????? | | ?????????????????????????????????????????????????? | | ?????????????????????????????????????????????????? | | ?????????????????????????????????????????????????? | | ??????????????????????##?????????????????????????? | | ?????????????????????? ????????????????????????? | | ?????????????????????? #????????????????????????? | | ?????????????????????? ????????????????????????? | | ?????????????????????# ##???????????????????????? | | ??#####???###???????? #???????????????????????? | | ??# ???? ??????### ????????????????????????? | | ?? ????" ??????# #????????????????????????? | | ?## #????? ????## ?????????????????????????? | | ## #????? ????# ##????????????????????????? | | # #????? #????? #????????????????????????? | | "##???## ##????# ##???????????????????????? | | ""##??# #???## ######??????????????????? | | ""####" ##### ##?????????????????? | | # " ##"##### #?????????????????? | | # """ #####"# #??????????????????? | | # """" # ##"" #### #??????????????????? | | # """" " R ;;## # ##?????????????????? | | # """"" R ## ????????? | | """### @ ????????? | | " #?#### ##### # ????????? | | ""##????### #???#### ## ????????? | | "#???????## #??????# ##??### ?????????? | | ## ##????????###??????#####???????? ?????????? | | ??##?????????????????????????????????#???????????? | | ?????????????????????????????????????????????????? | | ?????????????????????????????????????????????????? | | ?????????????????????????????????????????????????? | | ?????????????????????????????????????????????????? | | ?????????????????????????????????????????????????? | | ?????????????????????????????????????????????????? | | ?????????????????????????????????????????????????? | | ?????????????????????????????????????????????????? | | ?????????????????????????????????????????????????? | | ?????????????????????????????????????????????????? | | ?????????????????????????????????????????????????? | | ?????????????????????????????????????????????????? | | ?????????????????????????????????????????????????? | | ?????????????????????????????????????????????????? | | ?????????????????????????????????????????????????? | | | | | | | | | +----------------------------------------------------+ Best States ------------- Heat Dissipation 25 Energy Generation 10 Energy Capacity 125 Matter Stores 300 Matter Capacity 300 Sight Range 16 Robot Scan Range 14 Terrain Scan Density 10 Armor Coverage 100 Resistance: TH 10 Evasion (%) 62 Item Schematics ----------------- None Robot Schematics ------------------ None Fabricated ------------ Nothing Repaired ---------- Nothing Studied --------- None Alien Tech Used ----------------- None Achievements -------------- None Challenges ------------ None Game ------ Seed TrapShadeLaser Manual? 0 Play Time 00:07:25 Cumulative 51.4 hours Start 2026.07.27 @ 15:51:45 End 2026.07.27 @ 16:16:12 Sessions 1 Manual Loads 0 Difficulty Rogue Special Mode None Game No. 88 Rogue 88 Adventurer 0 Explorer 0 Win Type - Total 0 Types 0/0/0/0/0/0/0/0/0/0 Lore% 28 Gallery% 33 Achievement% 27 Wizard Run 0 Options --------- Layout 1 ASCII 0 Keyboard 0 Movement Numpad Keybinds 0 Fullscreen 2 Font 24/Smallcaps Map View 50x35 Zoom Use 0% Tactical HUD 1 Map Filters NONE Filters NONE Steam 1 RUN: 124478d6-1d7d-4bb0-b0fc-b582cbf28c4e